bitfinex-derivatives/quotes_ETHF0:USTF0_20250210
["timestamp","ask_amount","ask_price","bid_price","bid_amount"]
[1739155739997,6.46128165,2584.3,2583.9,0.00580484]
[1739155740189,3.7968,2584.2,2583.9,0.00580484]
[1739155740486,0.5969,2584.1,2583.9,0.00580484]
[1739155740685,4.93583937,2584.1,2583.9,0.00580484]
[1739155741985,4.33893937,2584.1,2583.9,0.00580484]
[1739155742987,4.91333937,2584.1,2583.9,0.00580484]
[1739155745088,2.82949842,2584.0,2582.8,21.6338]
[1739155745390,3.98163,2583.9,2582.8,3.2078]
[1739155745589,8.24644081,2583.9,2582.8,3.2078]
[1739155745893,7.47261081,2583.9,2582.8,3.2078]
[1739155746488,7.47261081,2583.9,2583.1,3.2078]
[1739155747085,7.47261081,2583.9,2583.4,3.2078]
[1739155747385,0.19114738,2584.2,2583.7,3.2078]
[1739155747586,0.00580484,2584.4,2584.0,3.2078]
[1739155747892,0.00580484,2584.4,2584.3,3.2078]
[1739155748691,0.00580484,2584.4,2584.0,3.2078]
[1739155749990,0.00580484,2584.4,2584.0,5.26349842]
[1739155750385,3.2078,2585.2,2584.3,3.2078]
[1739155750589,3.2078,2585.2,2584.6,3.2078]
[1739155750891,4.14603239,2585.1,2584.6,3.2078]
[1739155751385,4.14603239,2585.1,2584.4,0.571]
[1739155751587,4.15183723,2585.1,2584.6,0.00580484]
[1739155751793,3.2078,2584.9,2584.6,0.00580484]
[1739155752190,4.23539046,2584.8,2584.6,0.00580484]
[1739155752390,0.00580484,2585.1,2584.6,0.00580484]
[1739155752589,4.23539046,2585.0,2584.6,0.00580484]
[1739155754095,0.00580484,2585.1,2584.8,3.2078]
[1739155754303,0.19288975,2586.1,2584.9,2.05569842]
[1739155754589,4.35646739,2585.6,2585.1,3.2078]
[1739155755094,1.1725,2586.0,2585.1,3.2078]
[1739155755289,4.3803,2586.0,2585.1,3.2078]
[1739155755495,4.38484364,2585.6,2585.1,3.2078]
[1739155755797,4.39064848,2585.8,2585.1,3.2078]
[1739155755798,0.00580484,2585.8,2585.1,3.2078]
[1739155755993,0.00580484,2585.8,2585.4,3.2078]
[1739155756392,0.00580484,2585.8,2585.2,2.05569842]
[1739155756393,0.00580484,2585.8,2585.1,3.2078]
[1739155756594,4.39985672,2585.7,2585.1,3.2078]
[1739155757189,4.39985672,2585.7,2585.0,0.5963]
[1739155757403,3.2078,2585.6,2585.0,0.5963]
[1739155757593,3.2078,2585.6,2584.8,3.7741]
[1739155757789,4.07605305,2585.5,2584.8,3.7741]
[1739155759097,4.07605305,2585.5,2585.1,3.2078]
[1739155759296,4.33361475,2585.6,2585.1,3.2078]
[1739155759893,2.72790484,2585.8,2585.1,3.2078]
[1739155760087,4.41179931,2585.5,2585.1,3.2078]
[1739155760287,4.41179931,2585.6,2585.1,3.2078]
[1739155760498,2.72790484,2585.8,2585.1,3.2078]
[1739155760894,4.20029318,2585.7,2585.1,3.2078]
[1739155761696,7.40809318,2585.7,2584.8,3.7741]
[1739155762797,4.20029318,2585.7,2584.8,3.7741]
[1739155763190,7.40809318,2585.7,2584.8,3.7741]
[1739155763494,3.2078,2585.4,2584.8,3.7741]
[1739155763893,4.06796942,2585.3,2584.8,3.2078]
[1739155764092,2.087,2585.2,2584.8,3.2078]
[1739155764395,2.087,2585.2,2584.6,0.00580484]
[1739155764396,4.14269842,2585.2,2584.6,0.00580484]
[1739155764594,8.43076942,2585.1,2584.6,0.00580484]
[1739155767693,5.22296942,2585.1,2584.6,0.00580484]
[1739155767896,2.147,2585.6,2584.6,3.21360484]
[1739155768300,4.07098688,2585.3,2584.6,3.21360484]
[1739155768493,6.1266853,2585.5,2584.6,3.21360484]
[1739155768799,4.05385531,2585.2,2584.6,3.21360484]
[1739155768998,4.05385531,2585.3,2584.6,3.21360484]
[1739155769298,5.26349842,2585.5,2584.6,3.21360484]
[1739155769500,4.05385531,2585.2,2584.6,3.21360484]
[1739155769698,4.05385531,2585.3,2584.6,3.21360484]
[1739155770101,5.65069842,2585.5,2584.6,0.00580484]
[1739155770396,4.47384545,2585.2,2584.6,0.00580484]
[1739155770602,3.2078,2585.2,2584.6,0.00580484]
[1739155770799,2.07,2585.1,2584.6,0.00580484]
[1739155771100,6.30090626,2585.1,2584.6,3.21360484]
[1739155771499,4.23090626,2585.1,2584.6,3.21360484]
[1739155771690,5.2788,2585.6,2584.7,0.5933]
[1739155771898,3.2078,2585.6,2584.9,3.2078]
[1739155772106,4.29605943,2585.5,2585.0,0.595]
[1739155772607,3.2078,2585.6,2585.2,3.2078]
[1739155772803,3.2078,2585.6,2584.9,3.2078]
[1739155772804,4.36003979,2585.5,2584.9,3.2078]
[1739155774102,6.41573821,2585.5,2584.9,3.2078]
[1739155774299,0.5689,2585.4,2584.9,3.2078]
[1739155774503,2.068,2585.3,2584.9,3.2078]
[1739155774701,2.62369842,2585.2,2584.6,0.00580484]
[1739155774907,3.2078,2585.0,2584.6,0.00580484]
[1739155775308,4.02865696,2584.9,2584.6,0.00580484]
[1739155775810,6.08435538,2584.9,2584.6,0.00580484]
[1739155776604,3.595,2584.7,2583.9,3.2078]
[1739155776806,2.063,2584.6,2583.9,3.2078]
[1739155777008,6.21310688,2584.6,2583.9,3.2078]
[1739155777210,6.21310688,2584.6,2583.5,45.2133]
[1739155777807,0.00580484,2584.3,2583.8,0.00580484]
[1739155778207,4.39052963,2584.2,2583.8,0.00580484]
[1739155780108,4.39052963,2584.2,2583.8,3.21360484]
[1739155780309,0.00580484,2584.3,2583.8,3.21360484]
[1739155781616,0.00580484,2584.3,2584.1,3.2078]
[1739155781813,0.00580484,2584.3,2584.2,1.1188]
[1739155782015,2.049,2584.8,2584.2,1.1188]
[1739155782217,0.6126,2585.1,2584.4,3.2078]
[1739155782614,4.27274193,2585.0,2584.4,3.2078]
[1739155782814,3.40010024,2585.6,2584.8,3.2078]
[1739155783014,3.2078,2585.6,2584.8,5.26349842]
[1739155783313,4.18089842,2585.5,2584.9,0.5592]
[1739155785323,0.00580484,2585.5,2584.9,1.1555]
[1739155785818,0.00580484,2585.5,2585.1,3.2078]
[1739155787210,4.1088182,2585.4,2584.9,1.1555]
[1739155787616,0.00580484,2585.5,2584.9,1.1555]
[1739155787822,4.1088182,2585.4,2584.9,1.1555]
[1739155788323,0.00580484,2585.5,2584.9,1.1555]
[1739155789024,0.00580484,2585.5,2585.1,3.2078]
[1739155792919,0.00580484,2585.5,2585.4,3.2078]
[1739155793823,0.00580484,2585.5,2585.2,0.00580484]
[1739155798622,4.11845138,2585.4,2585.2,0.00580484]
[1739155800628,2.017,2585.3,2584.5,3.2078]
[1739155800926,0.5777,2585.2,2584.5,3.2078]
[1739155801136,4.787859,2585.2,2584.5,3.2078]
[1739155801720,0.6116,2585.1,2584.6,0.00580484]
[1739155802122,4.06158351,2585.0,2584.6,0.00580484]
[1739155803134,3.812,2585.4,2584.6,0.00580484]
[1739155803135,2.017,2585.4,2584.6,0.00580484]
[1739155803529,3.2078,2584.9,2584.6,0.00580484]
[1739155803841,4.47701922,2584.8,2584.6,0.00580484]
[1739155805329,0.5694,2585.1,2584.6,0.00580484]
[1739155805330,2.017,2585.1,2584.6,0.00580484]
[1739155805528,4.20099378,2584.8,2584.6,0.00580484]
[1739155805727,7.40879378,2585.0,2584.6,0.00580484]
[1739155805933,5.31795629,2584.9,2584.6,0.00580484]
[1739155806628,3.2078,2584.7,2583.9,3.2078]
[1739155807134,4.45841893,2584.6,2583.9,3.2078]
[1739155807328,2.017,2584.5,2583.9,3.2078]
[1739155807730,4.45841893,2584.4,2583.9,3.2078]
[1739155809030,7.66621893,2584.4,2583.6,3.2078]
[1739155809426,3.2078,2584.1,2583.6,3.2078]
[1739155809629,1.2078,2584.0,2583.6,3.2078]
[1739155809829,5.55167056,2584.0,2583.6,3.2078]
[1739155810025,5.55167056,2584.0,2583.3,4.3682]
[1739155810329,2.018,2583.9,2583.3,4.3682]
[1739155810737,7.27029377,2583.8,2583.3,3.2078]
[1739155811233,4.06249377,2583.8,2583.3,3.2078]
[1739155812030,4.25159013,2583.8,2583.3,3.2078]
[1739155816039,4.25159013,2583.8,2582.9,3.2078]
[1739155816234,6.39859013,2583.8,2582.9,3.2078]
[1739155817543,8.41659013,2583.8,2583.2,3.2078]
[1739155818843,3.2078,2583.6,2582.9,3.2078]
[1739155819041,1.60715909,2583.5,2582.9,3.2078]
[1739155819245,5.86177981,2583.5,2582.9,3.2078]
[1739155819441,0.6129,2583.4,2582.9,3.2078]
[1739155819838,4.25462072,2583.3,2582.9,3.2078]
[1739155820945,7.46242072,2583.3,2582.9,3.2078]
[1739155822449,4.25462072,2583.3,2582.6,4.4103]
[1739155823140,3.62515909,2583.2,2582.6,4.4103]
[1739155823335,3.62515909,2583.2,2582.6,3.2078]
[1739155823546,1.60715909,2582.8,2582.6,3.2078]
[1739155823742,5.90242562,2583.1,2582.6,3.2078]
[1739155823941,4.33127198,2582.7,2582.6,3.2078]
[1739155824141,0.19772785,2582.9,2582.6,3.2078]
[1739155824544,4.33127198,2582.8,2582.6,3.2078]
[1739155826348,4.42990696,2582.9,2582.6,3.2078]
[1739155826548,0.00580484,2583.0,2582.4,0.5734]
[1739155826842,4.42990696,2582.9,2582.4,0.5734]
[1739155827446,4.42990696,2582.9,2582.5,0.6146]
[1739155828949,4.42990696,2582.9,2582.3,4.81495909]
[1739155829150,4.42990696,2582.9,2582.0,1.1855]
[1739155829151,3.2078,2582.7,2582.0,1.1855]
[1739155829350,2.018,2582.6,2582.0,1.1855]
[1739155829543,6.30016081,2582.6,2582.0,1.1855]
[1739155830053,6.30016081,2582.6,2582.0,4.3933]
[1739155830256,2.147,2582.9,2582.3,4.81495909]
[1739155830451,2.147,2582.9,2582.6,3.2078]
[1739155830646,0.00580484,2583.0,2582.7,0.5795]
[1739155830647,4.2108111,2582.8,2582.7,0.5795]
[1739155830848,4.2108111,2582.8,2582.3,3.2078]
[1739155831047,5.83231233,2582.9,2582.1,0.5795]
[1739155831247,0.00580484,2583.0,2582.1,0.5795]
[1739155831450,0.00580484,2583.0,2582.3,4.81495909]
[1739155831649,4.22515324,2582.8,2582.3,4.81495909]
[1739155831865,4.22515324,2582.9,2582.3,4.81495909]
[1739155832155,0.00580484,2583.0,2582.3,4.81495909]
[1739155832454,4.13167895,2582.9,2582.3,4.81495909]
[1739155832652,0.00580484,2583.0,2582.6,4.81495909]
[1739155832853,0.00580484,2583.0,2582.9,3.2078]
[1739155833045,0.00580484,2583.0,2582.8,0.5723]
[1739155833652,0.00580484,2583.0,2582.9,3.2078]
[1739155834654,4.39878375,2583.0,2582.9,3.2078]
[1739155834859,0.00580484,2583.0,2582.9,3.2078]
[1739155836355,0.5799,2583.7,2582.9,10.81495909]
[1739155836557,0.18909636,2583.8,2583.2,3.2078]
[1739155836756,4.3997751,2583.6,2583.2,3.2078]
[1739155836955,4.3997751,2583.7,2583.0,0.5643]
[1739155837158,0.18909636,2583.8,2583.0,0.5643]
[1739155837662,4.24031276,2583.7,2583.1,0.00580484]
[1739155837962,7.44811276,2583.7,2583.1,0.00580484]
[1739155838256,1.60715909,2583.5,2583.1,0.00580484]
[1739155838457,3.7662,2583.4,2583.1,0.00580484]
[1739155838664,2.018,2583.3,2583.1,0.00580484]
[1739155839055,4.17450128,2583.2,2583.1,0.00580484]
[1739155839251,2.018,2583.3,2583.1,0.00580484]
[1739155840165,4.04404766,2583.2,2583.1,0.00580484]
[1739155841272,4.61934766,2583.2,2583.1,0.00580484]
[1739155843364,6.63734766,2583.2,2583.1,0.00580484]
[1739155844463,0.77407,2583.1,2582.2,0.6073]
[1739155844669,3.2078,2582.8,2582.2,0.6073]
[1739155844862,3.2078,2582.8,2582.0,0.5879]
[1739155845063,6.37736088,2582.7,2582.0,0.5879]
[1739155846165,0.6139,2582.6,2582.0,0.5879]
[1739155846563,4.15111579,2582.5,2582.0,0.5879]
[1739155847363,2.018,2582.7,2582.0,3.7957]
[1739155847563,4.30127207,2582.5,2582.0,3.7957]
[1739155847975,0.1972349,2582.5,2582.0,3.7957]
[1739155848272,5.8084,2582.8,2582.0,3.7957]
[1739155848468,3.8185,2583.1,2582.0,0.5879]
[1739155848777,4.16578715,2582.7,2582.2,3.2078]
[1739155848970,4.16578715,2582.9,2582.2,3.2078]
[1739155849177,2.018,2583.0,2582.3,0.5567]
[1739155849474,4.20698437,2582.8,2582.3,0.5567]
[1739155849668,3.595,2582.8,2582.0,0.5879]
[1739155849864,3.595,2582.8,2581.9,3.2078]
[1739155849865,0.7743,2582.4,2581.9,3.2078]
[1739155850066,2.018,2582.4,2581.9,3.2078]
[1739155850268,5.53397741,2582.3,2581.9,3.2078]
[1739155851268,4.39757741,2582.3,2581.9,3.2078]
[1739155851669,2.02380484,2582.4,2581.9,3.2078]
[1739155851968,2.02380484,2582.4,2582.0,0.5913]
[1739155852778,2.02380484,2582.4,2582.1,0.5566]
[1739155853076,0.00580484,2582.4,2582.2,3.2078]
[1739155853270,0.00580484,2582.4,2582.3,0.6031]
[1739155854274,0.06611147,2583.2,2582.3,6.6031]
[1739155854475,0.06611147,2583.2,2582.8,3.2078]
[1739155854676,0.06611147,2583.2,2582.9,0.5969]
[1739155855973,0.06611147,2583.2,2583.1,3.2078]
[1739155857376,0.06611147,2583.2,2583.1,3.7639]
[1739155857976,0.03130551,2583.2,2583.1,3.7639]
[1739155859077,0.03130551,2583.2,2583.1,9.7639]
[1739155859575,0.03130551,2583.2,2583.1,3.7639]
[1739155859769,0.03130551,2583.2,2582.5,0.5738]
[1739155859972,0.03130551,2583.2,2582.7,3.2078]
[1739155860474,0.03130551,2583.2,2583.0,3.2078]
[1739155861074,0.03130551,2583.2,2583.0,9.2078]
[1739155861278,0.00580484,2583.3,2583.0,9.2078]
[1739155861481,0.00580484,2583.3,2583.0,3.2078]
[1739155862277,0.00580484,2583.3,2583.0,9.2078]
[1739155862476,2.017,2584.8,2583.2,2.05774838]
[1739155862676,2.017,2584.8,2584.0,3.2078]
[1739155862873,4.37591548,2584.4,2584.0,3.2078]
[1739155863082,4.37879864,2584.7,2584.1,0.6063]
[1739155863284,4.37879864,2584.7,2583.7,3.2078]
[1739155863285,3.2078,2584.6,2583.7,3.2078]
[1739155863580,0.00580484,2584.4,2583.9,0.00580484]
[1739155863793,0.60250484,2584.4,2583.9,0.00580484]
[1739155863977,4.37879864,2584.3,2583.9,0.00580484]
[1739155864180,3.2078,2584.2,2583.9,0.00580484]
[1739155864378,4.20474838,2584.1,2583.9,0.00580484]
[1739155864681,4.20474838,2584.1,2583.1,3.2078]
[1739155864682,0.5595,2584.0,2583.1,3.2078]
[1739155864886,2.05774838,2583.8,2583.1,3.2078]
[1739155865080,0.5967,2583.7,2583.1,3.2078]
[1739155865276,4.81389679,2583.7,2583.1,3.2078]
[1739155865478,3.2078,2583.5,2582.7,3.2078]
[1739155865679,2.017,2583.6,2583.1,0.00580484]
[1739155865880,4.21719679,2583.4,2583.1,0.00580484]
[1739155866075,4.06998096,2583.5,2583.1,0.00580484]
[1739155866279,2.017,2583.6,2583.4,3.2078]
[1739155866486,2.017,2583.6,2583.1,3.82450484]
[1739155866687,2.017,2583.6,2583.4,3.2078]
[1739155866887,2.017,2583.6,2583.1,0.61670484]
[1739155869287,2.017,2583.6,2583.1,1.19110484]
[1739155869482,2.33653721,2583.8,2583.1,1.19110484]
[1739155869883,4.03435825,2583.7,2583.1,1.19110484]
[1739155870494,4.03435825,2583.7,2583.1,0.00580484]
[1739155870791,4.03435825,2583.7,2583.1,3.21360484]
[1739155870992,4.03435825,2583.7,2583.1,0.00580484]
[1739155871881,3.2078,2583.3,2583.1,0.00580484]
[1739155872080,4.68234838,2583.2,2582.1,3.2078]
[1739155872285,3.2078,2582.9,2582.1,3.2078]
[1739155872584,3.2078,2582.9,2582.0,1.2093]
[1739155872788,4.26760691,2582.8,2582.0,1.2093]
[1739155873290,4.26760691,2582.8,2581.8,3.7909]
[1739155873291,3.2078,2582.2,2581.8,3.2078]
[1739155873493,7.28254838,2582.6,2581.4,4.4311]
[1739155873688,4.3415476,2582.1,2581.4,4.4311]
[1739155873879,3.2078,2582.3,2581.4,4.4311]
[1739155874187,4.3831112,2582.2,2581.4,3.8178]
[1739155874590,4.38031275,2582.2,2581.4,3.8178]
[1739155876391,4.38031275,2582.2,2581.4,4.4082]
[1739155876892,3.2078,2582.0,2581.4,3.8178]
[1739155877085,4.38031275,2582.2,2581.4,3.8178]
[1739155877292,4.32107466,2581.9,2581.4,3.8178]
[1739155877492,4.32107466,2582.2,2581.4,3.8178]
[1739155877794,7.41254838,2582.3,2581.4,3.8178]
[1739155878094,4.20857356,2582.2,2581.4,3.8178]
[1739155878687,4.20857356,2582.2,2581.7,3.2078]
[1739155878896,3.2078,2582.3,2581.5,0.5676]
[1739155879094,4.06441895,2582.2,2581.5,0.5676]
[1739155879996,3.2078,2582.3,2581.7,3.2078]
[1739155880695,4.43377595,2582.2,2581.7,3.2078]
[1739155880989,4.43377595,2582.2,2581.5,0.5676]
[1739155881494,4.43377595,2582.2,2581.4,0.61]
[1739155881696,2.017,2582.1,2581.4,0.61]
[1739155881895,3.2078,2582.0,2581.3,3.2078]
[1739155882095,7.61958597,2582.0,2581.3,3.2078]
[1739155882390,7.61958597,2582.0,2580.7,2.05774838]
[1739155882391,5.26554838,2581.7,2580.6,3.2078]
[1739155882591,0.6102,2581.6,2580.6,3.8031]
[1739155882792,0.00580484,2581.4,2580.6,3.8031]
[1739155884293,0.00580484,2581.4,2580.9,3.2078]
[1739155885296,0.00580484,2581.4,2580.6,3.8031]
[1739155887101,0.00580484,2581.4,2580.9,3.2078]
[1739155887397,0.00580484,2581.4,2581.0,0.6147]
[1739155887697,0.00580484,2581.4,2581.2,3.2078]
[1739155888097,0.00580484,2581.4,2581.3,0.6089]
[1739155888295,2.017,2582.3,2581.3,3.23474838]
[1739155888497,2.017,2582.3,2581.7,3.2078]
[1739155888700,4.03130854,2582.2,2581.8,0.6147]
[1739155889003,0.19234417,2582.7,2582.0,3.2078]
[1739155889195,0.19234417,2582.7,2582.1,0.6089]
[1739155889391,4.45455943,2582.6,2582.1,0.61470484]
[1739155889701,0.00580484,2582.6,2582.3,3.2078]
[1739155889894,3.2078,2582.8,2582.3,3.2078]
[1739155889895,0.6137,2583.3,2582.3,3.2078]
[1739155890091,0.6137,2583.3,2582.5,3.2078]
[1739155890296,4.35028037,2583.2,2582.5,3.2078]
[1739155891191,0.00580484,2583.1,2582.8,3.2078]
[1739155891398,0.00580484,2583.1,2582.9,0.6149]
[1739155892199,4.33489121,2583.0,2582.6,0.6105]
[1739155895098,4.33489121,2583.0,2582.3,3.8227]
[1739155895495,0.6101,2582.9,2582.3,3.8227]
[1739155895702,2.6261,2582.9,2582.3,3.8227]
[1739155895896,4.35782133,2582.8,2582.3,3.8227]
[1739155896398,0.00580484,2583.1,2582.3,3.8227]
[1739155897600,4.06990668,2583.0,2582.3,3.8227]
[1739155897901,2.05774838,2582.9,2582.3,3.8227]
[1739155898301,4.36423245,2582.8,2582.3,3.8227]
[1739155898507,0.00580484,2583.1,2582.3,3.8227]
[1739155898806,0.00580484,2583.1,2582.6,3.2078]
[1739155900404,0.00580484,2583.1,2582.7,0.5874]
[1739155900903,0.00580484,2583.1,2582.6,3.2078]
[1739155901104,0.00580484,2583.1,2582.3,1.1753]
[1739155901105,4.19334161,2583.0,2582.3,1.1753]
[1739155903411,0.00580484,2583.1,2582.5,3.2078]
[1739155903801,0.00580484,2583.1,2582.8,3.2078]
[1739155904002,3.2078,2583.8,2582.9,1.159]
[1739155904214,3.2078,2583.8,2583.1,5.26554838]
[1739155904717,4.26910624,2583.7,2583.1,3.2078]
[1739155905213,0.00580484,2583.7,2583.1,3.2078]
[1739155906707,4.28898003,2583.6,2583.1,3.2078]
[1739155908912,0.00580484,2583.7,2583.1,3.2078]
[1739155909717,0.00580484,2583.7,2583.0,0.5767]
[1739155909912,0.00580484,2583.7,2583.1,3.2078]
[1739155910113,4.0743474,2583.6,2583.1,3.2078]
[1739155910817,0.00580484,2583.7,2583.1,3.2078]
[1739155911407,4.29585277,2583.6,2583.1,3.2078]
[1739155912204,0.00580484,2583.7,2583.1,3.2078]
[1739155914514,0.00580484,2583.7,2583.0,0.5767]
[1739155915416,4.10510784,2583.6,2583.0,0.5767]
[1739155916016,3.2078,2583.4,2582.8,3.2078]
[1739155916217,0.5831,2583.3,2582.4,3.7905]
[1739155916425,3.2078,2583.0,2582.4,3.7905]
[1739155916917,4.09624627,2582.9,2582.4,3.7905]
[1739155917322,4.442866,2583.1,2582.7,3.2078]
[1739155917524,2.5971,2583.3,2582.7,3.2078]
[1739155917725,4.442866,2583.2,2583.0,3.2078]
[1739155917926,3.2078,2583.6,2583.1,0.6082]
[1739155918117,3.2078,2583.6,2582.7,3.2078]
[1739155918317,4.03715147,2583.4,2582.7,3.2078]
[1739155918618,1.1753,2583.5,2582.7,3.2078]
[1739155919018,7.24495147,2583.3,2582.7,3.2078]
[1739155919218,3.2078,2583.3,2582.7,3.2078]
[1739155919425,4.04440881,2583.2,2582.7,3.2078]
[1739155919824,4.04440881,2583.2,2582.6,1.2104]
[1739155920020,7.20085922,2583.2,2582.6,0.6082]
[1739155920326,2.014,2583.1,2582.6,0.6082]
[1739155920526,2.014,2583.1,2582.4,3.2078]
[1739155920825,7.67707751,2583.0,2582.4,3.2078]
[1739155921122,0.6171,2582.9,2582.4,3.2078]
[1739155921426,1.2111,2582.9,2582.4,3.2078]
[1739155921628,4.31395437,2582.8,2582.4,3.2078]
[1739155922523,4.31395437,2582.8,2582.3,0.6082]
[1739155923630,4.31395437,2582.8,2582.3,3.816]
[1739155924040,3.2078,2583.0,2582.3,3.816]
[1739155924831,3.2078,2583.0,2582.6,3.2078]
[1739155925538,2.147,2583.2,2582.6,3.2078]
[1739155926238,3.2078,2583.6,2583.0,3.2078]
[1739155926435,3.2078,2583.6,2583.1,1.2065]
[1739155927039,4.37736724,2583.5,2583.1,1.2065]
[1739155928529,6.6948,2584.0,2583.3,3.2078]
[1739155928734,3.7808,2584.0,2583.3,3.2078]
[1739155929036,3.7808,2584.0,2583.4,0.6087]
[1739155930745,3.2078,2584.0,2583.4,0.6087]
[1739155930932,1.11769035,2584.5,2583.4,0.6087]
[1739155931134,2.147,2584.6,2583.6,3.2078]
[1739155931439,0.36290953,2584.6,2584.3,3.2078]
[1739155931640,4.05807833,2584.5,2583.9,3.2078]
[1739155931841,4.05807833,2584.5,2583.7,0.5716]
[1739155932141,7.26587833,2584.6,2583.9,3.2078]
[1739155932340,0.00580484,2584.4,2583.9,3.2078]
[1739155932941,0.00580484,2584.4,2584.2,3.2078]
[1739155933945,0.00580484,2584.4,2584.3,0.6128]
[1739155934441,3.7952,2585.3,2584.4,0.77365]
[1739155934647,3.7952,2585.3,2584.3,9.22614838]
[1739155934648,3.2078,2585.5,2584.9,3.2078]
[1739155934841,4.20214623,2585.2,2584.5,3.2078]
[1739155935039,3.2078,2585.5,2584.5,44.0078]
[1739155935040,0.5948,2585.4,2584.5,44.0078]
[1739155935345,4.74770364,2585.4,2584.5,44.0078]
[1739155935548,4.74770364,2585.4,2584.6,3.8054]
[1739155935842,0.00580484,2585.2,2584.7,0.00580484]
[1739155936043,3.21360484,2585.2,2584.7,0.00580484]
[1739155936243,3.2078,2584.9,2584.7,0.00580484]
[1739155936447,0.5948,2584.8,2584.7,0.00580484]
[1739155936643,4.8295195,2584.8,2584.7,0.00580484]
[1739155937246,0.5948,2584.8,2584.7,0.00580484]
[1739155937644,3.2317,2585.1,2584.7,0.00580484]
[1739155937847,2.6236,2585.1,2584.7,0.00580484]
[1739155938045,4.04359572,2585.0,2584.7,0.00580484]
[1739155940049,2.74030484,2585.2,2584.7,3.21360484]
[1739155940349,2.74030484,2585.2,2584.8,0.5921]
[1739155940947,4.46437079,2585.1,2584.8,0.5921]
[1739155941347,0.59330484,2585.2,2584.8,0.5921]
[1739155941847,0.00580484,2585.2,2585.0,3.2078]
[1739155942049,0.00580484,2585.2,2585.1,0.5975]
[1739155943256,0.00580484,2585.2,2584.8,0.5921]
[1739155943551,0.00580484,2585.2,2584.7,3.21360484]
[1739155943552,4.10725795,2585.2,2584.7,3.21360484]
[1739155943949,0.5746,2585.1,2584.7,3.21360484]
[1739155944249,0.5746,2585.1,2584.7,0.00580484]
[1739155944551,4.07835123,2585.0,2584.7,0.00580484]
[1739155944945,0.5746,2585.1,2584.7,0.00580484]
[1739155945548,4.4675912,2585.0,2584.7,0.00580484]
[1739155945955,6.52533958,2585.0,2584.7,0.00580484]
[1739155946156,3.7876,2584.9,2584.7,0.00580484]
[1739155946349,0.5798,2584.9,2584.7,0.00580484]
[1739155946656,4.42142677,2584.8,2584.7,0.00580484]
[1739155949654,2.5856,2585.1,2584.7,0.00580484]
[1739155949960,4.30751124,2584.9,2584.7,0.00580484]
[1739155950254,2.5856,2585.1,2584.7,0.00580484]
[1739155950455,5.26554838,2585.0,2584.7,0.00580484]
[1739155950650,4.07347371,2584.8,2584.7,0.00580484]
[1739155950846,9.33902209,2585.0,2584.7,0.00580484]
[1739155951049,0.06549304,2584.9,2584.7,0.00580484]
[1739155951246,4.07347371,2584.8,2584.7,0.00580484]
[1739155951554,2.011,2585.0,2584.7,0.00580484]
[1739155951948,4.3124386,2584.9,2584.7,0.00580484]
[1739155956563,9.365799,2585.0,2584.7,0.00580484]
[1739155957059,4.10025062,2584.9,2584.7,0.00580484]
[1739155959361,7.24670211,2585.0,2584.7,0.00580484]
[1739155959557,4.81378807,2585.0,2584.7,0.00580484]
[1739155959754,4.44423408,2584.9,2584.7,0.00580484]
[1739155960958,0.5746,2585.1,2584.7,0.00580484]
[1739155961161,4.16475877,2585.0,2584.7,0.00580484]
[1739155961355,5.77074684,2585.0,2584.7,0.00580484]
[1739155961558,1.60598807,2585.0,2584.7,0.00580484]
[1739155961869,4.3846475,2584.9,2584.7,0.00580484]
[1739155962159,0.5746,2585.1,2584.7,0.00580484]
[1739155962560,0.00580484,2585.2,2584.7,1.15430484]
[1739155964563,0.00580484,2585.2,2584.9,3.2078]
[1739155964951,0.00580484,2585.2,2585.0,0.5589]
[1739155965656,0.00580484,2585.2,2584.7,1.15430484]
[1739155966359,4.04625609,2585.1,2584.7,1.15430484]
[1739155967966,0.00580484,2585.2,2584.7,1.15430484]
[1739155968965,0.00580484,2585.2,2584.9,3.2078]
[1739155970472,4.12798567,2585.1,2584.7,1.15430484]
[1739155971865,4.71138567,2585.1,2584.7,1.15430484]
[1739155973767,7.27768567,2585.1,2584.7,0.00580484]
[1739155974069,7.84988567,2585.1,2584.7,0.00580484]
[1739155975161,2.5924,2585.1,2584.7,0.00580484]
[1739155976167,2.15280484,2585.2,2584.7,0.61430484]
[1739155976473,2.15280484,2585.2,2584.9,3.2078]
[1739155979569,2.15280484,2585.2,2584.9,3.7644]
[1739155979976,0.00580484,2585.2,2584.9,3.7644]
[1739155981475,3.2078,2585.8,2585.0,2.05461787]
[1739155981779,3.2078,2585.8,2585.4,3.2078]
[1739155982671,0.00379271,2585.9,2585.1,44.0078]
[1739155982872,0.00379271,2585.9,2585.4,3.2078]
[1739155983569,0.00379271,2585.9,2585.7,3.2078]
[1739155983878,0.5677,2586.8,2585.8,2.05461787]
[1739155984172,4.26912945,2586.6,2586.1,3.2078]
[1739155984378,4.26912945,2586.6,2585.5,5.86981787]
[1739155984574,0.563,2586.5,2585.8,3.2078]
[1739155984969,0.563,2586.5,2585.9,0.00580484]
[1739155985376,4.37983596,2586.4,2585.9,0.00580484]
[1739155985576,6.38683596,2586.4,2585.9,0.00580484]
[1739155985776,3.2078,2586.1,2585.9,0.00580484]
[1739155985974,1.2171,2586.0,2585.9,0.00580484]
[1739155986279,5.59693596,2586.0,2585.2,3.2078]
[1739155986478,0.5903,2585.9,2585.2,3.2078]
[1739155986877,4.46849272,2585.8,2585.2,3.2078]
[1739155987274,4.47429756,2585.8,2585.2,3.21360484]
[1739155989674,0.00580484,2585.8,2585.2,3.21360484]
[1739155992282,0.00580484,2585.8,2585.6,3.2078]
[1739155992579,0.00580484,2585.8,2585.7,0.5589]
[1739155993480,0.00580484,2585.8,2585.7,1.1721]
[1739155996388,2.6191,2586.7,2585.7,1.1721]
[1739155996582,3.1995,2586.7,2585.7,1.1721]
[1739155996782,4.21362937,2586.4,2585.7,1.1721]
[1739155996982,4.21362937,2586.6,2586.0,3.2078]
[1739155997182,3.1995,2586.7,2586.0,3.2078]
[1739155997383,4.21362937,2586.6,2586.0,3.2078]
[1739155997688,4.8119384,2586.5,2585.7,4.3799]
[1739155998192,4.38856689,2586.4,2585.7,4.3799]
[1739155998388,4.38856689,2586.4,2585.4,2.1649384]
[1739155998389,3.2078,2586.0,2585.4,3.2078]